[Event "Kupreichik Memorial Open 2018"]
[Site "Minsk"]
[Date "2018.06.22"]
[Round "5"]
[White "Runets, Ivan"]
[Black "Girshgorn, Maria"]
[Result "1-0"]
[ECO "A48"]
[WhiteElo "2027"]
[BlackElo "1805"]
[Annotator "NA"]
[PlyCount "147"]
[EventDate "2018.06.21"]
[EventCountry "BLR"]
[SourceTitle "playchess.com"]
[Source "ChessBase"]
[SourceQuality "1"]
[TimeControl "900+10"]

1. d4 {[%emt 0:00:00]} Nf6 {[%emt 0:00:01]} 2. Nf3 {[%emt 0:00:00]} g6 {[%emt 0:00:02]} 3. Bf4 {[%emt 0:00:00]} Bg7 {[%emt 0:00:01]} 4. e3 {[%emt 0:00:00]} O-O {[%emt 0:00:04]} 5. Be2 {[%emt 0:00:00]} d6 {[%emt 0:00:01]} 6. h3 {[%emt 0:00:00]} Nc6 {[%emt 0:00:26]} 7. O-O {[%emt 0:00:04]} Nd7 {[%emt 0:00:12]} 8. c3 {[%emt 0:00:05]} e5 {[%emt 0:00:08]} 9. Bh2 {[%emt 0:00:02]} e4 {[%emt 0:01:50]} 10. Nfd2 {[%emt 0:00:08]} Qe7 {[%emt 0:00:04]} 11. c4 {[%emt 0:00:13]} f5 {[%emt 0:00:42]} 12. Nc3 {[%emt 0:00:05]} Nf6 {[%emt 0:00:27]} 13. Qb3 {[%emt 0:00:47]} Kh8 {[%emt 0:00:33]} 14. Rae1 {[%emt 0:01:04]} g5 {[%emt 0:00:33]} 15. f3 {[%emt 0:02:15]} Rb8 {[%emt 0:01:56]} 16. fxe4 {[%emt 0:00:46]} fxe4 {[%emt 0:00:09]} 17. Qc2 {[%emt 0:00:16]} g4 {[%emt 0:01:18]} 18. hxg4 {[%emt 0:01:48]} Bxg4 {[%emt 0:00:10]} 19. Bxg4 {[%emt 0:00:22]} Nxg4 {[%emt 0:00:03]} 20. Bg3 {[%emt 0:01:13]} Nxd4 21. Qd1 {[%emt 0:03:21]} Qe6 {[%emt 0:06:17]} 22. Ncxe4 {[%emt 0:01:18]} Rxf1+ {[%emt 0:00:08]} 23. Kxf1 {[%emt 0:01:28]} Nf5 {[%emt 0:00:31]} 24. Bf4 {[%emt 0:00:13]} Bh6 {[%emt 0:01:38]} 25. Bxh6 {[%emt 0:01:27]} Nfxh6 {[%emt 0:00:14]} 26. b3 {[%emt 0:00:50]} Rf8+ {[%emt 0:01:03]} 27. Kg1 {[%emt 0:00:01]} Qe5 {[%emt 0:00:03]} 28. g3 {[%emt 0:01:05]} Qh5 {[%emt 0:00:02]} 29. Qe2 {[%emt 0:00:20]} Qe5 {[%emt 0:00:22]} 30. Rf1 {[%emt 0:00:30]} Rxf1+ {[%emt 0:00:24]} 31. Kxf1 {[%emt 0:00:02]} Qf5+ {[%emt 0:00:18]} 32. Kg2 {[%emt 0:00:05]} Nf7 {[%emt 0:00:02]} 33. Qf3 {[%emt 0:00:12]} Qxf3+ {[%emt 0:00:12]} 34. Kxf3 {[%emt 0:00:02]} Nfe5+ {[%emt 0:00:04]} 35. Ke2 {[%emt 0:00:25]} Kg7 {[%emt 0:00:04]} 36. Nc3 {[%emt 0:00:03]} Nf6 {[%emt 0:00:06]} 37. Nb5 {[%emt 0:00:08]} Ne8 {[%emt 0:00:07]} 38. Nxa7 {[%emt 0:00:27]} c6 {[%emt 0:00:02]} 39. Nc8 {[%emt 0:00:01]} Nd7 {[%emt 0:00:02]} 40. Ne4 {[%emt 0:00:01]} d5 {[%emt 0:00:04]} 41. cxd5 {[%emt 0:00:03]} cxd5 {[%emt 0:00:00]} 42. Ned6 {[%emt 0:00:01]} Nxd6 {[%emt 0:00:11]} 43. Nxd6 {[%emt 0:00:02]} b6 {[%emt 0:00:02]} 44. a4 {[%emt 0:00:09]} Nc5 {[%emt 0:00:05]} 45. Nc8 {[%emt 0:00:07]} Nxb3 {[%emt 0:00:03]} 46. Nxb6 {[%emt 0:00:01]} d4 {[%emt 0:00:01]} 47. exd4 {[%emt 0:00:20]} Nxd4+ {[%emt 0:00:02]} 48. Ke3 {[%emt 0:00:01]} Nc6 {[%emt 0:00:15]} 49. Nc4 {[%emt 0:00:03]} Kf6 {[%emt 0:00:02]} 50. Kf4 {[%emt 0:00:11]} Ke6 {[%emt 0:00:25]} 51. Ke4 {[%emt 0:00:08]} Kf6 {[%emt 0:00:04]} 52. Kd5 {[%emt 0:00:09]} Na7 {[%emt 0:00:08]} 53. Ne3 {[%emt 0:00:21]} h5 {[%emt 0:00:09]} 54. a5 {[%emt 0:00:14]} Ke7 {[%emt 0:01:05]} 55. a6 {[%emt 0:00:42]} Kd7 {[%emt 0:00:04]} 56. Kc5 {[%emt 0:00:08]} Kc7 {[%emt 0:00:02]} 57. Nd5+ {[%emt 0:00:01]} Kb8 {[%emt 0:00:02]} 58. Nf6 {[%emt 0:00:05]} Nc8 {[%emt 0:00:06]} 59. Nxh5 {[%emt 0:00:04]} Ka7 {[%emt 0:00:01]} 60. Kd5 {[%emt 0:00:16]} Ne7+ {[%emt 0:00:13]} 61. Ke6 {[%emt 0:00:02]} Ng6 {[%emt 0:00:01]} 62. Kf6 {[%emt 0:00:05]} Nf8 {[%emt 0:00:06]} 63. Nf4 {[%emt 0:00:11]} Kxa6 {[%emt 0:00:03]} 64. Ne6 {[%emt 0:00:31]} Nd7+ {[%emt 0:00:13]} 65. Kf5 {[%emt 0:00:01]} Kb6 {[%emt 0:00:18]} 66. g4 {[%emt 0:00:01]} Kc6 {[%emt 0:00:00]} 67. g5 {[%emt 0:00:40]} Kd6 {[%emt 0:00:01]} 68. g6 {[%emt 0:00:09]} Ke7 {[%emt 0:00:01]} 69. Ng5 {[%emt 0:00:12]} Nf6 {[%emt 0:00:20]} 70. g7 {[%emt 0:00:11]} Ng8 {[%emt 0:00:10]} 71. Kg6 {[%emt 0:00:03]} Nf6 {[%emt 0:00:03]} 72. Ne4 {[%emt 0:00:18]} Ng8 {[%emt 0:00:06]} 73. Kh7 {[%emt 0:00:02]} Kf7 {[%emt 0:00:28]} 74. Ng5+ {[%emt 0:00:01]} 1-0

[Event "Kupreichik Memorial Open 2018"]
[Site "Minsk"]
[Date "2018.06.22"]
[Round "5"]
[White "Romanovskij, Nikita"]
[Black "Kolosovskaya, Olga"]
[Result "1-0"]
[ECO "D12"]
[WhiteElo "1990"]
[BlackElo "1747"]
[Annotator "NA"]
[PlyCount "43"]
[EventDate "2018.06.21"]
[EventCountry "BLR"]
[SourceTitle "playchess.com"]
[Source "ChessBase"]
[SourceQuality "1"]
[TimeControl "900+10"]

1. d4 {[%emt 0:00:00]} d5 {[%emt 0:00:01]} 2. c4 {[%emt 0:00:00]} c6 {[%emt 0:00:01]} 3. Nf3 {[%emt 0:00:06]} Nf6 {[%emt 0:00:01]} 4. e3 {[%emt 0:00:07]} Bf5 {[%emt 0:00:19]} 5. Nc3 {[%emt 0:00:16]} e6 {[%emt 0:00:05]} 6. Qb3 {[%emt 0:00:45]} Qb6 {[%emt 0:00:03]} 7. c5 {[%emt 0:00:08]} Qxb3 {[%emt 0:00:19]} 8. axb3 {[%emt 0:00:01]} Be7 {[%emt 0:03:47]} 9. b4 {[%emt 0:00:54]} O-O {[%emt 0:00:03]} 10. b5 {[%emt 0:01:27]} Nbd7 {[%emt 0:00:07]} 11. Be2 {[%emt 0:02:43]} Be4 {[%emt 0:05:25]} 12. O-O {[%emt 0:01:52]} Bxf3 {[%emt 0:00:05]} 13. Bxf3 {[%emt 0:00:07]} e5 {[%emt 0:00:09]} 14. b4 {[%emt 0:01:47]} Rfd8 {[%emt 0:01:27]} 15. bxc6 {[%emt 0:01:08]} bxc6 {[%emt 0:00:01]} 16. b5 {[%emt 0:00:01]} e4 {[%emt 0:02:21]} 17. Be2 {[%emt 0:00:11]} Rdc8 {[%emt 0:01:35]} 18. bxc6 {[%emt 0:00:34]} Rxc6 {[%emt 0:00:02]} 19. Bd2 {[%emt 0:00:45]} Bd8 {[%emt 0:01:26]} 20. Rfb1 {[%emt 0:00:58]} a5 {[%emt 0:00:12]} 21. Bb5 {[%emt 0:02:30]} Re6 {[%emt 0:00:14]} 22. Bxd7 {[%emt 0:00:20]} 1-0

[Event "Kupreichik Memorial Open 2018"]
[Site "Minsk"]
[Date "2018.06.22"]
[Round "5"]
[White "Tsaruk, Maksim"]
[Black "Nigmatov, Ortik"]
[Result "1/2-1/2"]
[ECO "B83"]
[WhiteElo "1980"]
[BlackElo "2210"]
[Annotator "NA"]
[PlyCount "105"]
[EventDate "2018.06.21"]
[EventCountry "BLR"]
[SourceTitle "playchess.com"]
[Source "ChessBase"]
[SourceQuality "1"]
[TimeControl "900+10"]

1. e4 {[%emt 0:00:00]} c5 {[%emt 0:00:01]} 2. Nf3 {[%emt 0:00:02]} e6 {[%emt 0:00:01]} 3. d4 {[%emt 0:00:06]} cxd4 {[%emt 0:00:02]} 4. Nxd4 {[%emt 0:00:07]} Nf6 {[%emt 0:00:01]} 5. Nc3 {[%emt 0:00:07]} d6 {[%emt 0:00:02]} 6. Be2 {[%emt 0:00:10]} Be7 {[%emt 0:00:06]} 7. O-O {[%emt 0:00:07]} O-O {[%emt 0:00:04]} 8. Be3 {[%emt 0:00:04]} Nc6 {[%emt 0:00:01]} 9. f4 {[%emt 0:00:10]} e5 {[%emt 0:00:02]} 10. Nxc6 {[%emt 0:00:06]} bxc6 {[%emt 0:00:02]} 11. Kh1 {[%emt 0:00:07]} exf4 {[%emt 0:00:50]} 12. Bxf4 {[%emt 0:00:07]} Be6 {[%emt 0:00:12]} 13. Bf3 {[%emt 0:00:23]} Qc7 {[%emt 0:01:56]} 14. Qe1 {[%emt 0:00:50]} Rfe8 {[%emt 0:02:26]} 15. e5 {[%emt 0:01:35]} Nd7 {[%emt 0:02:16]} 16. exd6 {[%emt 0:03:22]} Bxd6 {[%emt 0:00:02]} 17. Bxd6 {[%emt 0:00:01]} Qxd6 {[%emt 0:00:01]} 18. Rd1 {[%emt 0:03:58]} Qc7 {[%emt 0:01:34]} 19. Qg3 {[%emt 0:03:01]} Qxg3 {[%emt 0:00:11]} 20. hxg3 {[%emt 0:00:01]} Ne5 {[%emt 0:00:21]} 21. Rd6 {[%emt 0:00:04]} Rac8 {[%emt 0:00:48]} 22. Ne4 {[%emt 0:03:22]} Nc4 {[%emt 0:00:29]} 23. Rd4 {[%emt 0:00:12]} Bd5 {[%emt 0:00:02]} 24. b3 {[%emt 0:00:27]} Ne3 {[%emt 0:00:01]} 25. Rf2 {[%emt 0:00:02]} Nf5 {[%emt 0:00:02]} 26. Rd3 {[%emt 0:00:27]} Rxe4 {[%emt 0:01:19]} 27. Bxe4 Bxe4 {[%emt 0:00:01]} 28. Rd7 {[%emt 0:00:18]} h5 {[%emt 0:01:28]} 29. Rxa7 {[%emt 0:00:12]} Rd8 {[%emt 0:01:09]} 30. Ra4 {[%emt 0:00:01]} Rd1+ {[%emt 0:02:15]} 31. Kh2 {[%emt 0:00:01]} Nd6 {[%emt 0:00:47]} 32. Ra8+ {[%emt 0:00:11]} Kh7 {[%emt 0:00:02]} 33. Rd8 {[%emt 0:00:01]} f5 {[%emt 0:01:00]} 34. c4 {[%emt 0:00:10]} c5 {[%emt 0:00:08]} 35. b4 {[%emt 0:00:02]} Rc1 {[%emt 0:00:48]} 36. Rxd6 {[%emt 0:00:02]} cxb4 {[%emt 0:00:01]} 37. Rb6 {[%emt 0:00:20]} Rxc4 {[%emt 0:00:02]} 38. Rb2 {[%emt 0:00:01]} Bd5 {[%emt 0:00:05]} 39. Rb5 {[%emt 0:00:37]} Rd4 {[%emt 0:00:10]} 40. Ra5 {[%emt 0:00:26]} Kh6 {[%emt 0:00:27]} 41. Ra4 {[%emt 0:00:02]} Rg4 {[%emt 0:00:10]} 42. Rd2 {[%emt 0:00:15]} Bf7 {[%emt 0:00:05]} 43. Rb2 {[%emt 0:00:15]} Bd5 {[%emt 0:00:01]} 44. Ra5 {[%emt 0:00:03]} Rd4 {[%emt 0:00:03]} 45. Rb5 {[%emt 0:00:20]} g6 {[%emt 0:00:04]} 46. R5xb4 {[%emt 0:00:05]} Rxb4 {[%emt 0:00:01]} 47. Rxb4 {[%emt 0:00:01]} Bxa2 {[%emt 0:00:01]} 48. Kg1 {[%emt 0:00:04]} Bd5 {[%emt 0:00:01]} 49. Kf2 {[%emt 0:00:01]} Kg5 {[%emt 0:00:02]} 50. Rh4 {[%emt 0:00:06]} Be4 {[%emt 0:00:04]} 51. Rh2 {[%emt 0:00:10]} Kg4 {[%emt 0:00:02]} 52. Rh4+ {[%emt 0:00:04]} Kg5 {[%emt 0:00:00]} 53. Rh2 {[%emt 0:00:13]} 1/2-1/2

[Event "Kupreichik Memorial Open 2018"]
[Site "Minsk"]
[Date "2018.06.22"]
[Round "5"]
[White "Svjatocho, Andrej"]
[Black "Badelka, Olga"]
[Result "0-1"]
[ECO "B30"]
[WhiteElo "1979"]
[BlackElo "2153"]
[Annotator "NA"]
[PlyCount "92"]
[EventDate "2018.06.21"]
[EventCountry "BLR"]
[SourceTitle "playchess.com"]
[Source "ChessBase"]
[SourceQuality "1"]
[TimeControl "900+10"]

1. e4 {[%emt 0:00:05]} c5 {[%emt 0:00:01]} 2. Nf3 {[%emt 0:00:07]} Nc6 {[%emt 0:00:01]} 3. Bb5 {[%emt 0:00:03]} e6 {[%emt 0:00:02]} 4. O-O {[%emt 0:00:05]} Nge7 {[%emt 0:00:02]} 5. Re1 {[%emt 0:00:04]} Nd4 {[%emt 0:00:01]} 6. Bf1 {[%emt 0:00:12]} Nxf3+ {[%emt 0:00:05]} 7. Qxf3 {[%emt 0:00:04]} Nc6 {[%emt 0:00:01]} 8. c3 {[%emt 0:00:16]} Be7 {[%emt 0:00:07]} 9. d3 {[%emt 0:00:21]} e5 {[%emt 0:00:07]} 10. Be3 {[%emt 0:00:31]} d6 {[%emt 0:00:11]} 11. Nd2 {[%emt 0:00:06]} O-O {[%emt 0:00:05]} 12. Qe2 {[%emt 0:00:24]} f5 {[%emt 0:00:39]} 13. f3 {[%emt 0:00:15]} f4 {[%emt 0:02:08]} 14. Bf2 {[%emt 0:00:03]} Bh4 {[%emt 0:00:19]} 15. Bxh4 {[%emt 0:02:02]} Qxh4 {[%emt 0:00:04]} 16. Qf2 {[%emt 0:00:04]} Qf6 {[%emt 0:00:12]} 17. a3 {[%emt 0:01:04]} b6 {[%emt 0:00:22]} 18. b4 {[%emt 0:00:44]} g5 {[%emt 0:00:06]} 19. b5 {[%emt 0:00:47]} Ne7 {[%emt 0:01:05]} 20. d4 {[%emt 0:00:22]} g4 {[%emt 0:00:47]} 21. Bc4+ {[%emt 0:00:47]} Kh8 {[%emt 0:00:02]} 22. Bd5 {[%emt 0:00:11]} Rb8 {[%emt 0:00:07]} 23. dxe5 {[%emt 0:01:32]} dxe5 {[%emt 0:00:01]} 24. fxg4 {[%emt 0:00:06]} Bxg4 {[%emt 0:00:06]} 25. Nf3 {[%emt 0:00:05]} Ng6 {[%emt 0:00:43]} 26. Rad1 {[%emt 0:00:16]} Rbc8 {[%emt 0:00:16]} 27. Rd3 {[%emt 0:00:55]} Rc7 {[%emt 0:01:03]} 28. Red1 {[%emt 0:00:20]} Rg7 {[%emt 0:00:21]} 29. Kh1 {[%emt 0:00:41]} Rd8 {[%emt 0:05:05]} 30. Bc4 {[%emt 0:03:21]} Rxd3 {[%emt 0:00:43]} 31. Rxd3 {[%emt 0:00:03]} Bxf3 {[%emt 0:01:12]} 32. Qxf3 {[%emt 0:01:13]} h6 {[%emt 0:00:51]} 33. Qh5 {[%emt 0:00:46]} Kh7 {[%emt 0:01:06]} 34. Qf5 {[%emt 0:01:00]} Qh4 {[%emt 0:01:47]} 35. g3 {[%emt 0:00:01]} Qg5 {[%emt 0:00:14]} 36. Rd7 {[%emt 0:01:09]} Qxf5 {[%emt 0:00:15]} 37. Rxg7+ {[%emt 0:00:02]} Kxg7 {[%emt 0:00:00]} 38. exf5 {[%emt 0:00:03]} Ne7 {[%emt 0:00:05]} 39. g4 {[%emt 0:00:07]} Kf6 {[%emt 0:00:14]} 40. Kg2 {[%emt 0:00:02]} e4 {[%emt 0:00:05]} 41. Be6 {[%emt 0:00:22]} Ke5 {[%emt 0:00:34]} 42. h4 {[%emt 0:00:06]} f3+ {[%emt 0:00:35]} 43. Kg3 {[%emt 0:00:06]} h5 {[%emt 0:00:05]} 44. Bc4 {[%emt 0:00:56]} hxg4 {[%emt 0:00:03]} 45. Kxg4 {[%emt 0:00:02]} Nxf5 {[%emt 0:00:03]} 46. Bf1 {[%emt 0:00:09]} Ne3+ {[%emt 0:00:03]} 0-1

[Event "Kupreichik Memorial Open 2018"]
[Site "Minsk"]
[Date "2018.06.22"]
[Round "5"]
[White "Zhukovskij, Viktor"]
[Black "Arlou, Valery"]
[Result "1-0"]
[ECO "B06"]
[WhiteElo "1973"]
[BlackElo "1743"]
[Annotator "NA"]
[PlyCount "89"]
[EventDate "2018.06.21"]
[EventCountry "BLR"]
[SourceTitle "playchess.com"]
[Source "ChessBase"]
[SourceQuality "1"]
[TimeControl "900+10"]

1. e4 {[%emt 0:00:00]} g6 {[%emt 0:01:57]} 2. d4 {[%emt 0:00:00]} Bg7 {[%emt 0:00:01]} 3. Nc3 {[%emt 0:00:00]} d6 {[%emt 0:00:02]} 4. Be3 {[%emt 0:00:00]} e5 {[%emt 0:00:02]} 5. dxe5 {[%emt 0:00:44]} Bxe5 {[%emt 0:00:02]} 6. f4 {[%emt 0:00:04]} Bg7 {[%emt 0:00:07]} 7. Nf3 {[%emt 0:00:06]} Ne7 {[%emt 0:00:07]} 8. Bd4 {[%emt 0:01:26]} Bxd4 {[%emt 0:00:11]} 9. Qxd4 {[%emt 0:00:04]} O-O {[%emt 0:00:10]} 10. h4 {[%emt 0:01:17]} Nbc6 {[%emt 0:00:02]} 11. Qf6 {[%emt 0:00:10]} Nb4 {[%emt 0:02:01]} 12. O-O-O {[%emt 0:00:32]} Nec6 {[%emt 0:00:02]} 13. Qxd8 {[%emt 0:00:23]} Nxd8 {[%emt 0:00:39]} 14. a3 {[%emt 0:00:03]} Nbc6 {[%emt 0:00:04]} 15. Nd5 {[%emt 0:00:06]} Ne6 {[%emt 0:01:38]} 16. f5 {[%emt 0:02:42]} Nc5 {[%emt 0:00:31]} 17. Nxc7 {[%emt 0:00:32]} Rb8 {[%emt 0:00:02]} 18. fxg6 {[%emt 0:00:57]} hxg6 {[%emt 0:00:25]} 19. Bd3 {[%emt 0:00:46]} Be6 {[%emt 0:04:12]} 20. b4 {[%emt 0:01:12]} Nxd3+ {[%emt 0:02:19]} 21. Rxd3 {[%emt 0:00:27]} Rbd8 {[%emt 0:00:42]} 22. Nxe6 {[%emt 0:01:12]} fxe6 {[%emt 0:00:03]} 23. Rhd1 {[%emt 0:00:01]} Rf4 {[%emt 0:00:23]} 24. Ng5 {[%emt 0:00:43]} Rxh4 {[%emt 0:00:28]} 25. Nxe6 {[%emt 0:00:05]} Re8 {[%emt 0:00:30]} 26. Rxd6 {[%emt 0:00:04]} Rxe4 {[%emt 0:00:52]} 27. Nc5 {[%emt 0:00:20]} R4e7 {[%emt 0:00:12]} 28. Rxg6+ {[%emt 0:00:09]} Kf7 {[%emt 0:00:13]} 29. Rg3 {[%emt 0:00:01]} Re1 {[%emt 0:00:50]} 30. Nxb7 {[%emt 0:00:41]} Nd4 {[%emt 0:00:36]} 31. Nd6+ {[%emt 0:00:11]} Kf8 {[%emt 0:00:30]} 32. Nxe8 {[%emt 0:01:26]} Ne2+ {[%emt 0:00:02]} 33. Kd2 {[%emt 0:00:01]} Rxd1+ {[%emt 0:00:03]} 34. Kxd1 {[%emt 0:00:00]} Nxg3 {[%emt 0:00:02]} 35. Nd6 {[%emt 0:00:05]} Kg7 {[%emt 0:00:30]} 36. Nb5 {[%emt 0:00:02]} a6 {[%emt 0:00:06]} 37. Nc7 {[%emt 0:00:01]} Ne4 {[%emt 0:00:15]} 38. Nxa6 {[%emt 0:00:08]} Nc3+ {[%emt 0:00:09]} 39. Kc1 {[%emt 0:00:02]} Kf6 {[%emt 0:00:08]} 40. Kb2 {[%emt 0:00:01]} Nd5 {[%emt 0:00:02]} 41. c4 {[%emt 0:00:01]} Nb6 {[%emt 0:00:02]} 42. c5 {[%emt 0:00:03]} Nc4+ {[%emt 0:00:08]} 43. Kb3 {[%emt 0:00:02]} Ne3 {[%emt 0:00:02]} 44. b5 {[%emt 0:00:06]} Ke7 {[%emt 0:00:06]} 45. b6 {[%emt 0:00:03]} 1-0

[Event "Kupreichik Memorial Open 2018"]
[Site "Minsk"]
[Date "2018.06.22"]
[Round "5"]
[White "Artsiomau, Stanislau"]
[Black "Yurau, Maksim"]
[Result "0-1"]
[ECO "B20"]
[WhiteElo "1954"]
[BlackElo "1694"]
[Annotator "NA"]
[PlyCount "74"]
[EventDate "2018.06.21"]
[EventCountry "BLR"]
[SourceTitle "playchess.com"]
[Source "ChessBase"]
[SourceQuality "1"]
[TimeControl "900+10"]

1. e4 {[%emt 0:00:00]} c5 {[%emt 0:00:01]} 2. d3 {[%emt 0:00:00]} Nc6 {[%emt 0:00:02]} 3. g3 {[%emt 0:00:03]} Nf6 {[%emt 0:00:02]} 4. Bg2 {[%emt 0:00:02]} e6 {[%emt 0:00:07]} 5. Nf3 {[%emt 0:00:17]} d5 {[%emt 0:00:05]} 6. e5 {[%emt 0:00:17]} Nd7 {[%emt 0:00:06]} 7. Qe2 {[%emt 0:00:13]} Be7 {[%emt 0:00:46]} 8. O-O {[%emt 0:00:05]} O-O {[%emt 0:00:03]} 9. Bf4 {[%emt 0:00:34]} Rb8 {[%emt 0:00:45]} 10. h4 {[%emt 0:00:04]} b5 {[%emt 0:00:02]} 11. Nbd2 {[%emt 0:00:13]} a5 {[%emt 0:00:14]} 12. Bh3 {[%emt 0:00:31]} Ba6 {[%emt 0:00:44]} 13. c3 {[%emt 0:02:12]} Nb6 {[%emt 0:02:18]} 14. Ng5 {[%emt 0:00:15]} h6 {[%emt 0:00:38]} 15. Nxf7 {[%emt 0:01:14]} Kxf7 {[%emt 0:02:57]} 16. Qh5+ {[%emt 0:00:03]} g6 {[%emt 0:00:39]} 17. Qxh6 {[%emt 0:00:28]} Rh8 {[%emt 0:00:45]} 18. Bxe6+ {[%emt 0:00:02]} Kxe6 {[%emt 0:00:01]} 19. Qxg6+ {[%emt 0:00:01]} Kd7 {[%emt 0:00:03]} 20. Rfd1 {[%emt 0:05:45]} Kc7 {[%emt 0:01:54]} 21. b4 {[%emt 0:01:09]} Qg8 {[%emt 0:02:29]} 22. Qxg8 {[%emt 0:02:08]} Rbxg8 {[%emt 0:00:03]} 23. bxc5 {[%emt 0:00:19]} Bxc5 {[%emt 0:00:08]} 24. Nb3 {[%emt 0:00:02]} Be7 {[%emt 0:00:14]} 25. Kf1 {[%emt 0:00:21]} a4 {[%emt 0:00:37]} 26. Nd4 {[%emt 0:00:12]} Nxd4 {[%emt 0:00:11]} 27. cxd4 {[%emt 0:00:01]} Kb7 {[%emt 0:00:13]} 28. Ke2 {[%emt 0:00:14]} Rc8 {[%emt 0:00:02]} 29. Rac1 {[%emt 0:00:01]} Ba3 {[%emt 0:00:18]} 30. Rxc8 {[%emt 0:00:03]} Rxc8 {[%emt 0:00:02]} 31. h5 {[%emt 0:00:01]} b4 {[%emt 0:01:09]} 32. h6 {[%emt 0:00:10]} b3 {[%emt 0:00:26]} 33. axb3 {[%emt 0:00:01]} axb3 {[%emt 0:00:02]} 34. e6 {[%emt 0:00:33]} Na4 {[%emt 0:01:07]} 35. Bd2 {[%emt 0:01:01]} Nb2 {[%emt 0:00:59]} 36. Rh1 {[%emt 0:00:11]} Bxd3+ {[%emt 0:00:03]} 37. Ke3 {[%emt 0:00:01]} Be4 {[%emt 0:00:28]} 0-1

[Event "Kupreichik Memorial Open 2018"]
[Site "Minsk"]
[Date "2018.06.22"]
[Round "5"]
[White "Laptii, Nazar"]
[Black "Stsepkina, Yauheniya"]
[Result "1-0"]
[ECO "A05"]
[WhiteElo "1915"]
[BlackElo "1591"]
[Annotator "NA"]
[PlyCount "71"]
[EventDate "2018.06.21"]
[EventCountry "BLR"]
[SourceTitle "playchess.com"]
[Source "ChessBase"]
[SourceQuality "1"]
[TimeControl "900+10"]

1. Nf3 {[%emt 0:00:00]} Nf6 {[%emt 0:00:01]} 2. g3 {[%emt 0:00:00]} g6 {[%emt 0:00:06]} 3. Bg2 {[%emt 0:00:00]} Bg7 {[%emt 0:00:03]} 4. O-O {[%emt 0:00:00]} O-O {[%emt 0:00:02]} 5. d3 {[%emt 0:00:00]} d5 {[%emt 0:00:02]} 6. Nbd2 {[%emt 0:00:01]} c5 {[%emt 0:00:01]} 7. e4 {[%emt 0:00:01]} b6 {[%emt 0:00:13]} 8. Re1 {[%emt 0:02:22]} Nc6 {[%emt 0:01:07]} 9. c3 {[%emt 0:00:27]} Bb7 {[%emt 0:00:56]} 10. h3 {[%emt 0:00:24]} e6 {[%emt 0:01:37]} 11. e5 {[%emt 0:01:17]} Nd7 {[%emt 0:00:02]} 12. d4 {[%emt 0:00:01]} cxd4 {[%emt 0:00:02]} 13. cxd4 {[%emt 0:00:01]} Rc8 {[%emt 0:01:06]} 14. a3 {[%emt 0:00:42]} Re8 {[%emt 0:03:31]} 15. Nf1 {[%emt 0:01:48]} f6 {[%emt 0:03:03]} 16. exf6 {[%emt 0:00:57]} Bxf6 {[%emt 0:00:02]} 17. Ne3 {[%emt 0:00:31]} b5 {[%emt 0:02:50]} 18. h4 {[%emt 0:01:28]} Qb6 {[%emt 0:01:07]} 19. Nc2 {[%emt 0:04:14]} Na5 {[%emt 0:00:29]} 20. Bg5 {[%emt 0:01:52]} Nb3 {[%emt 0:01:24]} 21. Rb1 {[%emt 0:00:20]} Bg7 {[%emt 0:00:07]} 22. Re3 {[%emt 0:00:26]} Na5 {[%emt 0:00:33]} 23. Bh3 {[%emt 0:00:25]} Nc4 {[%emt 0:00:11]} 24. Re2 {[%emt 0:00:04]} Rc6 {[%emt 0:00:19]} 25. Nb4 {[%emt 0:00:12]} Rcc8 {[%emt 0:00:07]} 26. Qe1 {[%emt 0:00:18]} Nf8 {[%emt 0:00:15]} 27. Rd1 {[%emt 0:00:36]} a5 {[%emt 0:00:04]} 28. Nd3 {[%emt 0:00:21]} h6 {[%emt 0:00:13]} 29. Bf4 {[%emt 0:00:17]} Kh7 {[%emt 0:00:10]} 30. Nc5 {[%emt 0:00:09]} Bxd4 {[%emt 0:00:11]} 31. Nxb7 {[%emt 0:00:08]} Bxf2+ {[%emt 0:00:08]} 32. Qxf2 {[%emt 0:00:25]} Qxb7 {[%emt 0:00:01]} 33. Ne5 {[%emt 0:00:03]} Nxe5 {[%emt 0:00:11]} 34. Bxe5 {[%emt 0:00:04]} Re7 {[%emt 0:00:11]} 35. Qf6 {[%emt 0:00:18]} Qa7+ {[%emt 0:00:17]} 36. Bd4 {[%emt 0:00:06]} 1-0

[Event "Kupreichik Memorial Open 2018"]
[Site "Minsk"]
[Date "2018.06.22"]
[Round "5"]
[White "Gavrjuchenkova, Angelina"]
[Black "Drobyshevsky, Vasily"]
[Result "0-1"]
[ECO "B01"]
[WhiteElo "1900"]
[BlackElo "1551"]
[Annotator "NA"]
[PlyCount "70"]
[EventDate "2018.06.21"]
[EventCountry "BLR"]
[SourceTitle "playchess.com"]
[Source "ChessBase"]
[SourceQuality "1"]
[TimeControl "900+10"]

1. e4 {[%emt 0:00:00]} d5 {[%emt 0:00:45]} 2. exd5 {[%emt 0:00:00]} Qxd5 {[%emt 0:00:02]} 3. Nc3 {[%emt 0:00:00]} Qe5+ {[%emt 0:00:01]} 4. Be2 {[%emt 0:00:04]} Bg4 {[%emt 0:00:01]} 5. d4 {[%emt 0:00:40]} Bxe2 {[%emt 0:00:03]} 6. Ngxe2 {[%emt 0:00:15]} Qa5 {[%emt 0:00:03]} 7. O-O {[%emt 0:00:59]} Nf6 {[%emt 0:00:02]} 8. Bd2 {[%emt 0:00:34]} c6 {[%emt 0:00:02]} 9. Ng3 {[%emt 0:01:11]} e6 {[%emt 0:00:05]} 10. Nce4 {[%emt 0:02:07]} Qd8 {[%emt 0:00:03]} 11. Bg5 {[%emt 0:00:25]} Be7 {[%emt 0:00:02]} 12. c3 {[%emt 0:00:35]} Nbd7 {[%emt 0:00:11]} 13. f4 {[%emt 0:01:04]} O-O {[%emt 0:00:29]} 14. Nxf6+ {[%emt 0:01:41]} Nxf6 {[%emt 0:00:12]} 15. Bxf6 {[%emt 0:00:15]} Bxf6 {[%emt 0:00:02]} 16. Qg4 {[%emt 0:00:02]} g6 {[%emt 0:00:33]} 17. Rf3 {[%emt 0:01:20]} Rc8 {[%emt 0:02:12]} 18. Raf1 {[%emt 0:00:03]} Bg7 {[%emt 0:00:04]} 19. h4 {[%emt 0:01:37]} c5 {[%emt 0:01:02]} 20. dxc5 {[%emt 0:00:02]} Rxc5 {[%emt 0:00:02]} 21. h5 {[%emt 0:00:22]} Qb6 {[%emt 0:00:12]} 22. Kh1 {[%emt 0:00:06]} Qxb2 {[%emt 0:00:39]} 23. hxg6 {[%emt 0:00:15]} hxg6 {[%emt 0:00:14]} 24. f5 {[%emt 0:01:18]} exf5 {[%emt 0:02:32]} 25. Nxf5 {[%emt 0:01:28]} Rxf5 {[%emt 0:00:17]} 26. Rxf5 {[%emt 0:00:45]} gxf5 {[%emt 0:00:02]} 27. Qxf5 {[%emt 0:01:03]} Qxc3 {[%emt 0:00:09]} 28. Rf3 {[%emt 0:00:22]} Qe5 {[%emt 0:00:58]} 29. Qd7 {[%emt 0:00:33]} Qe1+ {[%emt 0:00:55]} 30. Kh2 {[%emt 0:00:01]} Be5+ {[%emt 0:01:08]} 31. Kh3 {[%emt 0:00:22]} Qh1+ {[%emt 0:00:19]} 32. Kg4 {[%emt 0:00:08]} Qxg2+ {[%emt 0:00:04]} 33. Kf5 {[%emt 0:00:14]} Qxf3+ {[%emt 0:00:11]} 34. Kxe5 {[%emt 0:00:01]} Qe3+ {[%emt 0:00:31]} 35. Kf6 {[%emt 0:00:37]} Qe6+ {[%emt 0:00:03]} 0-1